[Event "Icelandic Team-ch Premier 2021-22"]
[Site "Reykjavik"]
[Date "2022.03.05"]
[Round "8.1"]
[White "Hillarp Persson, Tiger"]
[Black "Hjartarson, Johann"]
[Result "0-1"]
[ECO "A05"]
[WhiteElo "2508"]
[BlackElo "2470"]
[Annotator "ChessBase"]
[PlyCount "65"]
[EventDate "2022.03.05"]
[EventType "team-tourn"]
[EventCountry "ISL"]
[SourceTitle "playchess.com"]
[Source "ChessBase"]
[SourceQuality "1"]
[TimeControl "5400+30"]

1. Nf3 {[%emt 0:00:08]} Nf6 {[%emt 0:01:06]} 2. g3 {[%emt 0:00:06]} b5 {[%emt 0:00:29]} 3. Bg2 {[%emt 0:00:22]} Bb7 {[%emt 0:00:07]} 4. O-O {[%emt 0:00:12]} e6 {[%emt 0:00:10]} 5. d3 {[%emt 0:00:09]} c5 {[%emt 0:01:13]} 6. e4 {[%emt 0:00:15]} d6 {[%emt 0:00:11]} 7. Ng5 {[%emt 0:12:24]} Nc6 {[%emt 0:12:02]} 8. f4 {[%emt 0:00:12]} Be7 {[%emt 0:03:10]} 9. Nd2 {[%emt 0:05:40]} h6 {[%emt 0:02:45]} 10. Nh3 {[%emt 0:00:14]} O-O {[%emt 0:02:42]} 11. g4 {[%emt 0:06:31]} e5 {[%emt 0:04:00]} 12. f5 {[%emt 0:04:53]} d5 {[%emt 0:03:27]} 13. exd5 {[%emt 0:07:13]} Nxd5 {[%emt 0:00:05]} 14. Ne4 {[%emt 0:00:12]} f6 {[%emt 0:09:47]} 15. c3 {[%emt 0:01:02]} Rb8 {[%emt 0:02:49]} 16. Nhf2 {[%emt 0:06:58]} Kh8 {[%emt 0:03:14]} 17. h4 {[%emt 0:05:58]} c4 {[%emt 0:04:35]} 18. dxc4 {[%emt 0:00:30]} bxc4 {[%emt 0:00:03]} 19. Qf3 {[%emt 0:01:54]} Nf4 {[%emt 0:07:19]} 20. Bxf4 {[%emt 0:01:02]} exf4 {[%emt 0:00:04]} 21. Qxf4 {[%emt 0:00:12]} Ne5 {[%emt 0:00:09]} 22. Rad1 {[%emt 0:11:35]} Qa5 {[%emt 0:01:20]} 23. g5 {[%emt 0:01:51]} Bxe4 {[%emt 0:04:39]} 24. Nxe4 {[%emt 0:00:13]} Rxb2 {[%emt 0:05:13]} 25. gxh6 {[%emt 0:14:47]} Rg8 {[%emt 0:01:34]} 26. Rf2 {[%emt 0:10:33]} Rxf2 {[%emt 0:06:41]} 27. hxg7+ {[%emt 0:04:02]} Rxg7 {[%emt 0:00:27]} 28. Qxf2 {[%emt 0:00:13]} Ng4 {[%emt 0:01:56]} 29. Qf4 {[%emt 0:01:36]} Qxa2 {[%emt 0:02:06]} 30. Qd2 {[%emt 0:03:40]} Qa5 {[%emt 0:01:03]} 31. Qd7 {[%emt 0:00:19]} Qb6+ {[%emt 0:05:13]} 32. Kh1 {[%emt 0:00:27]} Qb8 {[%emt 0:00:23]} 33. Nd6 {[%emt 0:01:37]} 0-1

[Event "Icelandic Team-ch Premier 2021-22"]
[Site "Reykjavik"]
[Date "2022.03.05"]
[Round "8.2"]
[White "Pakleza, Zbigniew"]
[Black "Bromann, Thorbjorn"]
[Result "1-0"]
[ECO "A41"]
[WhiteElo "2500"]
[BlackElo "2376"]
[Annotator "ChessBase"]
[PlyCount "59"]
[EventDate "2022.03.05"]
[EventType "team-tourn"]
[EventCountry "ISL"]
[SourceTitle "playchess.com"]
[Source "ChessBase"]
[SourceQuality "1"]
[TimeControl "5400+30"]

1. d4 {[%emt 0:00:03]} g6 {[%emt 0:00:06]} 2. c4 {[%emt 0:00:11]} Bg7 {[%emt 0:00:07]} 3. Nf3 {[%emt 0:00:16]} d6 {[%emt 0:00:06]} 4. Nc3 {[%emt 0:00:16]} Bg4 {[%emt 0:01:36]} 5. e3 {[%emt 0:00:57]} Nc6 {[%emt 0:02:19]} 6. Be2 {[%emt 0:03:58]} e5 {[%emt 0:09:05]} 7. dxe5 {[%emt 0:00:44]} dxe5 {[%emt 0:00:23]} 8. Qb3 {[%emt 0:00:33]} Qc8 {[%emt 0:04:39]} 9. h3 {[%emt 0:03:11]} Bd7 {[%emt 0:03:16]} 10. O-O {[%emt 0:11:13]} Nge7 {[%emt 0:01:14]} 11. Rd1 {[%emt 0:11:14]} Nf5 {[%emt 0:06:46]} 12. Nd5 {[%emt 0:05:26]} b6 {[%emt 0:12:12]} 13. Bd2 {[%emt 0:07:42]} O-O {[%emt 0:11:50]} 14. Bc3 {[%emt 0:03:09]} Re8 {[%emt 0:01:17]} 15. Rac1 {[%emt 0:00:25]} Nd6 {[%emt 0:02:16]} 16. c5 {[%emt 0:08:50]} Ne4 {[%emt 0:06:39]} 17. cxb6 {[%emt 0:00:15]} cxb6 {[%emt 0:07:27]} 18. Be1 {[%emt 0:01:07]} Qb7 {[%emt 0:09:49]} 19. Qc4 {[%emt 0:01:43]} Nc5 {[%emt 0:08:44]} 20. b4 {[%emt 0:02:57]} Ne6 {[%emt 0:00:17]} 21. Qh4 {[%emt 0:01:13]} e4 {[%emt 0:03:20]} 22. Nf6+ {[%emt 0:05:37]} Bxf6 {[%emt 0:06:08]} 23. Qxf6 {[%emt 0:00:02]} exf3 {[%emt 0:01:22]} 24. Bxf3 {[%emt 0:00:08]} Ned4 {[%emt 0:01:00]} 25. Rxd4 {[%emt 0:03:15]} Re6 {[%emt 0:00:11]} 26. Qh4 {[%emt 0:00:25]} b5 {[%emt 0:00:47]} 27. Bc3 {[%emt 0:00:31]} Be8 {[%emt 0:00:27]} 28. Qxh7+ {[%emt 0:00:31]} Kxh7 {[%emt 0:00:11]} 29. Rh4+ {[%emt 0:00:03]} Kg8 {[%emt 0:00:06]} 30. Rh8# {[%emt 0:00:35]} 1-0

[Event "Icelandic Team-ch Premier 2021-22"]
[Site "Reykjavik"]
[Date "2022.03.05"]
[Round "8.3"]
[White "Karlsson, Bjorn-Ivar"]
[Black "Thorfinnsson, Bjorn"]
[Result "1-0"]
[ECO "A50"]
[WhiteElo "2295"]
[BlackElo "2387"]
[Annotator "NA"]
[PlyCount "61"]
[EventDate "2022.03.05"]
[EventType "team-tourn"]
[EventCountry "ISL"]
[SourceTitle "playchess.com"]
[Source "ChessBase"]
[SourceQuality "1"]
[TimeControl "5400+30"]

1. d4 {[%emt 0:00:04]} Nf6 {[%emt 0:01:44]} 2. Nf3 {[%emt 0:00:42]} b6 {[%emt 0:00:38]} 3. c4 {[%emt 0:01:26]} Bb7 {[%emt 0:04:08]} 4. Nc3 {[%emt 0:00:41]} Ne4 {[%emt 0:00:22]} 5. Nxe4 {[%emt 0:02:30]} Bxe4 {[%emt 0:03:17]} 6. Nd2 {[%emt 0:04:52]} Bb7 {[%emt 0:04:28]} 7. e4 {[%emt 0:00:45]} e6 {[%emt 0:03:19]} 8. Bd3 {[%emt 0:05:24]} Nc6 {[%emt 0:05:02]} 9. Nf3 {[%emt 0:03:09]} Bb4+ {[%emt 0:03:34]} 10. Kf1 {[%emt 0:03:30]} d5 {[%emt 0:07:45]} 11. cxd5 {[%emt 0:05:07]} exd5 {[%emt 0:04:02]} 12. e5 {[%emt 0:00:07]} Be7 {[%emt 0:01:35]} 13. a3 {[%emt 0:01:20]} Qd7 {[%emt 0:18:02]} 14. Qc2 {[%emt 0:21:09]} g6 {[%emt 0:04:26]} 15. Bh6 {[%emt 0:15:47]} Nd8 {[%emt 0:00:38]} 16. e6 {[%emt 0:01:43]} Nxe6 {[%emt 0:02:06]} 17. Ne5 {[%emt 0:05:16]} Qc8 {[%emt 0:00:51]} 18. Qa4+ {[%emt 0:13:22]} c6 {[%emt 0:00:18]} 19. Rc1 {[%emt 0:00:38]} a6 {[%emt 0:03:47]} 20. h4 {[%emt 0:07:07]} b5 {[%emt 0:03:02]} 21. Qc2 {[%emt 0:01:00]} Nxd4 {[%emt 0:00:25]} 22. Qc3 {[%emt 0:00:06]} c5 {[%emt 0:00:24]} 23. Nf3 {[%emt 0:02:48]} Qg4 {[%emt 0:01:55]} 24. Re1 {[%emt 0:00:49]} Rc8 {[%emt 0:09:15]} 25. Ne5 {[%emt 0:01:51]} Qe6 {[%emt 0:03:02]} 26. Nxg6 {[%emt 0:00:40]} hxg6 {[%emt 0:00:11]} 27. Rxe6 {[%emt 0:00:13]} fxe6 {[%emt 0:00:02]} 28. Bxg6+ {[%emt 0:01:11]} Kd7 {[%emt 0:00:03]} 29. Qe3 {[%emt 0:00:49]} Rcg8 {[%emt 0:00:36]} 30. h5 {[%emt 0:00:29]} Nc6 {[%emt 0:00:52]} 31. Bf7 {[%emt 0:00:18]} 1-0

[Event "Icelandic Team-ch Premier 2021-22"]
[Site "Reykjavik"]
[Date "2022.03.05"]
[Round "8.4"]
[White "Gunnarsson, Jon Viktor"]
[Black "Sigurpalsson, Runar"]
[Result "1-0"]
[ECO "A48"]
[WhiteElo "2439"]
[BlackElo "2279"]
[Annotator "NA"]
[PlyCount "55"]
[EventDate "2022.03.05"]
[EventType "team-tourn"]
[EventCountry "ISL"]
[SourceTitle "playchess.com"]
[Source "ChessBase"]
[SourceQuality "1"]
[TimeControl "5400+30"]

1. d4 {[%emt 0:00:03]} Nf6 {[%emt 0:00:19]} 2. Nc3 {[%emt 0:00:12]} g6 {[%emt 0:02:59]} 3. Bf4 {[%emt 0:01:52]} Bg7 {[%emt 0:02:46]} 4. Nf3 {[%emt 0:01:04]} d6 {[%emt 0:00:38]} 5. Qd2 {[%emt 0:02:23]} Bg4 {[%emt 0:02:58]} 6. O-O-O {[%emt 0:05:55]} Nbd7 {[%emt 0:01:10]} 7. e4 {[%emt 0:02:45]} Bxf3 {[%emt 0:06:15]} 8. gxf3 {[%emt 0:00:25]} e5 {[%emt 0:00:55]} 9. dxe5 {[%emt 0:06:49]} dxe5 {[%emt 0:02:14]} 10. Bg5 {[%emt 0:04:56]} h6 {[%emt 0:05:27]} 11. Be3 {[%emt 0:00:08]} Qe7 {[%emt 0:01:52]} 12. Nb5 {[%emt 0:10:58]} Nb6 {[%emt 0:03:12]} 13. Qc3 {[%emt 0:02:28]} c6 {[%emt 0:07:05]} 14. Nd6+ {[%emt 0:06:55]} Kf8 {[%emt 0:00:09]} 15. Qa3 {[%emt 0:01:52]} Nfd7 {[%emt 0:07:40]} 16. c4 {[%emt 0:07:20]} Bf6 {[%emt 0:02:20]} 17. c5 {[%emt 0:02:36]} Nc8 {[%emt 0:00:35]} 18. Nxb7 {[%emt 0:00:32]} Kg7 {[%emt 0:01:46]} 19. Na5 {[%emt 0:03:44]} Nf8 {[%emt 0:03:22]} 20. Bh3 {[%emt 0:07:29]} Qc7 $18 {[%emt 0:01:14]} 21. Qa4 {[%emt 0:03:38]} Ne7 {[%emt 0:02:24]} 22. Rd6 {[%emt 0:00:44]} Bg5 {[%emt 0:00:14]} 23. Rhd1 {[%emt 0:00:57]} f5 {[%emt 0:02:53]} 24. exf5 {[%emt 0:00:58]} gxf5 {[%emt 0:00:08]} 25. f4 {[%emt 0:00:14]} Bxf4 {[%emt 0:01:31]} 26. Bxf4 {[%emt 0:00:54]} exf4 {[%emt 0:00:04]} 27. Qxf4 {[%emt 0:00:32]} Qxa5 {[%emt 0:02:13]} 28. Qe5+ {[%emt 0:02:33]} 1-0

[Event "Icelandic Team-ch Premier 2021-22"]
[Site "Reykjavik"]
[Date "2022.03.05"]
[Round "8.6"]
[White "Sammalvuo, Tapani"]
[Black "Halldorsson, Halldor"]
[Result "1/2-1/2"]
[ECO "D91"]
[WhiteElo "2420"]
[BlackElo "2211"]
[Annotator "ChessBase"]
[PlyCount "47"]
[EventDate "2022.03.05"]
[EventType "team-tourn"]
[EventCountry "ISL"]
[SourceTitle "playchess.com"]
[Source "ChessBase"]
[SourceQuality "1"]
[TimeControl "5400+30"]

1. d4 {[%emt 0:00:02]} Nf6 {[%emt 0:00:27]} 2. c4 {[%emt 0:00:06]} g6 {[%emt 0:00:21]} 3. Nc3 {[%emt 0:00:03]} d5 {[%emt 0:00:17]} 4. Nf3 {[%emt 0:01:54]} Bg7 {[%emt 0:00:49]} 5. Bg5 {[%emt 0:00:17]} Ne4 {[%emt 0:02:13]} 6. Bf4 {[%emt 0:04:12]} Nxc3 {[%emt 0:01:37]} 7. bxc3 {[%emt 0:00:03]} dxc4 {[%emt 0:02:17]} 8. Qa4+ {[%emt 0:00:08]} c6 {[%emt 0:02:40]} 9. Qxc4 {[%emt 0:00:03]} O-O {[%emt 0:01:06]} 10. e3 {[%emt 0:02:20]} Qa5 {[%emt 0:03:55]} 11. Be2 {[%emt 0:01:12]} Nd7 {[%emt 0:02:44]} 12. O-O {[%emt 0:00:42]} Nb6 {[%emt 0:14:02]} 13. Qb3 {[%emt 0:07:37]} Nd5 {[%emt 0:03:50]} 14. Rac1 {[%emt 0:05:17]} Be6 {[%emt 0:03:44]} 15. c4 {[%emt 0:04:39]} Nxf4 {[%emt 0:00:31]} 16. exf4 {[%emt 0:00:02]} Rfd8 {[%emt 0:05:55]} 17. Rfd1 {[%emt 0:00:38]} Rab8 {[%emt 0:02:55]} 18. Ng5 {[%emt 0:07:01]} Qf5 {[%emt 0:05:48]} 19. Qe3 {[%emt 0:04:02]} Qf6 {[%emt 0:06:42]} 20. Ne4 {[%emt 0:02:05]} Qf5 {[%emt 0:01:18]} 21. Ng5 {[%emt 0:03:35]} Qf6 {[%emt 0:00:30]} 22. Ne4 {[%emt 0:03:53]} Qf5 {[%emt 0:00:16]} 23. Nc5 {[%emt 0:04:54]} Qf6 {[%emt 0:00:41]} 24. Ne4 {[%emt 0:06:32]} 1/2-1/2

[Event "Icelandic Team-ch Premier 2021-22"]
[Site "Reykjavik"]
[Date "2022.03.05"]
[Round "8.7"]
[White "Karason, Askell O"]
[Black "Kjartansson, David"]
[Result "1-0"]
[ECO "D35"]
[WhiteElo "2186"]
[BlackElo "2304"]
[Annotator "NA"]
[PlyCount "107"]
[EventDate "2022.03.05"]
[EventType "team-tourn"]
[EventCountry "ISL"]
[SourceTitle "playchess.com"]
[Source "ChessBase"]
[SourceQuality "1"]
[TimeControl "5400+30"]

1. d4 {[%emt 0:00:04]} Nf6 {[%emt 0:00:06]} 2. c4 {[%emt 0:00:06]} e6 {[%emt 0:00:07]} 3. Nc3 {[%emt 0:00:04]} d5 {[%emt 0:00:08]} 4. cxd5 {[%emt 0:00:05]} Nxd5 {[%emt 0:00:07]} 5. e4 {[%emt 0:00:06]} Nxc3 {[%emt 0:00:07]} 6. bxc3 {[%emt 0:00:03]} c5 {[%emt 0:00:08]} 7. a3 {[%emt 0:00:02]} g6 {[%emt 0:00:23] Nowadays more popular than 7...cxd4.} 8. Nf3 {[%emt 0:00:11]} Bg7 {[%emt 0:00:07]} 9. Be2 {[%emt 0:00:17]} O-O {[%emt 0:00:27]} 10. O-O {[%emt 0:00:10]} Nc6 {[%emt 0:00:45]} 11. Be3 {[%emt 0:00:32] [#]} Qa5 $146 {[%emt 0:10:43]} ({Predecessor:} 11... cxd4 12. cxd4 b6 13. h4 Bb7 14. h5 gxh5 15. Ra2 Ne7 16. Qb1 Rc8 17. Rd1 f5 {½-½ (66) Korobov,A (2688)-Keymer,V (2558) Chess.com INT 2020}) 12. Qb3 {[%emt 0:04:22]} Qc7 {[%emt 0:08:38]} 13. dxc5 {[%emt 0:23:51]} Na5 {[%emt 0:03:13]} 14. Qb4 {[%emt 0:02:23]} Bd7 {[%emt 0:03:00]} 15. Nd4 {[%emt 0:06:05]} Rfc8 {[%emt 0:01:25]} 16. Nb5 {[%emt 0:06:29]} Bxb5 {[%emt 0:00:24]} 17. Qxb5 {[%emt 0:02:58]} Bf8 {[%emt 0:01:20]} 18. Rfd1 {[%emt 0:00:27]} Bxc5 {[%emt 0:04:59]} 19. Bxc5 {[%emt 0:01:10]} a6 {[%emt 0:07:42]} 20. Qb6 {[%emt 0:05:48]} Qxc5 {[%emt 0:00:07]} 21. Rd8+ {[%emt 0:00:08]} Rxd8 {[%emt 0:00:05]} 22. Qxc5 {[%emt 0:00:04]} Nb3 {[%emt 0:00:07]} 23. Qb4 {[%emt 0:01:06]} Nxa1 {[%emt 0:00:07]} 24. Qb2 {[%emt 0:00:04]} Rac8 {[%emt 0:00:18]} 25. Qxa1 {[%emt 0:00:22]} Rd2 {[%emt 0:00:12]} 26. Kf1 {[%emt 0:02:11]} Rc2 {[%emt 0:00:08]} 27. c4 {[%emt 0:00:18]} Rd8 {[%emt 0:00:11]} 28. h4 {[%emt 0:14:07]} Rdd2 {[%emt 0:00:52]} 29. Bf3 {[%emt 0:00:06]} Rxc4 $18 {[%emt 0:07:48]} (29... h5 $142 30. Qe1 Rd3) 30. Kg1 {[%emt 0:00:51]} b5 {[%emt 0:00:12]} 31. h5 {[%emt 0:01:54]} gxh5 {[%emt 0:01:19]} 32. Qf6 {[%emt 0:00:13]} Rc1+ {[%emt 0:03:21]} 33. Kh2 {[%emt 0:00:07]} Rcc2 {[%emt 0:00:08]} 34. Kg3 {[%emt 0:02:09]} Rxf2 {[%emt 0:00:57]} 35. Qg5+ {[%emt 0:01:26]} Kf8 {[%emt 0:00:10]} 36. Qxh5 {[%emt 0:00:13]} Rfd2 {[%emt 0:01:33]} 37. Qxh7 {[%emt 0:05:04]} Ke7 {[%emt 0:02:11]} 38. Qh4+ {[%emt 0:01:00]} Ke8 {[%emt 0:00:41]} 39. Qh8+ {[%emt 0:00:27]} Ke7 {[%emt 0:00:28]} 40. Qb8 {[%emt 0:01:01]} Kf6 {[%emt 0:00:21]} 41. Kf4 {[%emt 0:01:25]} Rd3 {[%emt 0:01:09]} 42. Qf8 {[%emt 0:06:52]} Rc4 {[%emt 0:01:24]} 43. Qh8+ {[%emt 0:01:37]} Ke7 {[%emt 0:00:26]} 44. Be2 {[%emt 0:00:16]} Rxa3 {[%emt 0:02:00]} 45. Bxc4 {[%emt 0:00:18]} bxc4 {[%emt 0:00:02]} 46. Qd4 {[%emt 0:00:36]} Ra2 {[%emt 0:00:46]} 47. Qc5+ {[%emt 0:01:42]} Ke8 {[%emt 0:00:19]} 48. g4 {[%emt 0:01:37]} Rc2 {[%emt 0:00:35]} 49. Ke5 {[%emt 0:01:23]} Rc1 {[%emt 0:00:38]} 50. g5 {[%emt 0:01:48]} c3 {[%emt 0:00:23]} 51. g6 {[%emt 0:00:10]} fxg6 {[%emt 0:01:21]} 52. Kxe6 {[%emt 0:00:34]} Kd8 {[%emt 0:00:06]} 53. Qf8+ {[%emt 0:01:03]} Kc7 {[%emt 0:00:05]} 54. Qf4+ {[%emt 0:00:02]} 1-0

[Event "Icelandic Team-ch Premier 2021-22"]
[Site "Reykjavik"]
[Date "2022.03.05"]
[Round "8.8"]
[White "Bjornsson, Tomas"]
[Black "Bergsson, Stefan"]
[Result "1/2-1/2"]
[ECO "B42"]
[WhiteElo "2174"]
[BlackElo "2095"]
[Annotator "NA"]
[PlyCount "102"]
[EventDate "2022.03.05"]
[EventType "team-tourn"]
[EventCountry "ISL"]
[SourceTitle "playchess.com"]
[Source "ChessBase"]
[SourceQuality "1"]
[TimeControl "5400+30"]

1. e4 {[%emt 0:00:04]} c5 {[%emt 0:06:22]} 2. Nf3 {[%emt 0:00:24]} e6 {[%emt 0:00:33]} 3. d4 {[%emt 0:00:09]} cxd4 {[%emt 0:00:05]} 4. Nxd4 {[%emt 0:00:05]} a6 {[%emt 0:00:38]} 5. Bd3 {[%emt 0:03:57]} Bc5 {[%emt 0:02:15]} 6. Nb3 {[%emt 0:05:47]} Ba7 {[%emt 0:00:03]} 7. O-O {[%emt 0:00:11]} Qc7 {[%emt 0:01:05]} 8. Qg4 {[%emt 0:04:31]} g6 {[%emt 0:01:16]} 9. Bf4 {[%emt 0:01:48]} e5 {[%emt 0:07:09]} 10. Bd2 {[%emt 0:11:26]} d6 {[%emt 0:03:09]} 11. Qh4 {[%emt 0:02:41]} Be6 {[%emt 0:01:58]} 12. Kh1 {[%emt 0:02:04]} Qe7 {[%emt 0:06:29]} 13. Qg3 {[%emt 0:11:27]} Nf6 {[%emt 0:00:22]} 14. f4 {[%emt 0:11:06]} Nh5 {[%emt 0:01:20]} 15. Qf3 {[%emt 0:00:08]} exf4 {[%emt 0:01:12]} 16. Bxf4 {[%emt 0:01:29]} Nxf4 {[%emt 0:02:15]} 17. Qxf4 {[%emt 0:00:06]} Nd7 {[%emt 0:00:34]} 18. Nc3 {[%emt 0:02:21]} Ne5 {[%emt 0:05:22]} 19. Be2 {[%emt 0:02:42]} h5 {[%emt 0:09:34]} 20. Nd5 {[%emt 0:02:16]} Bxd5 {[%emt 0:15:20]} 21. exd5 {[%emt 0:00:22]} Rc8 {[%emt 0:01:19]} 22. c3 {[%emt 0:01:19]} O-O {[%emt 0:04:30]} 23. Nd2 {[%emt 0:05:14]} f5 {[%emt 0:02:12]} 24. Rae1 {[%emt 0:01:01]} b5 {[%emt 0:04:57]} 25. a4 {[%emt 0:03:12]} Qb7 {[%emt 0:07:26]} 26. axb5 {[%emt 0:03:19]} axb5 {[%emt 0:00:29]} 27. Qg5 {[%emt 0:07:55]} Kh7 {[%emt 0:02:08]} 28. Bf3 {[%emt 0:00:50]} Rce8 {[%emt 0:01:40]} 29. h3 {[%emt 0:00:15]} Qg7 {[%emt 0:02:12]} 30. Be2 {[%emt 0:01:42]} b4 {[%emt 0:03:32]} 31. Bb5 {[%emt 0:06:05]} bxc3 {[%emt 0:04:02]} 32. bxc3 {[%emt 0:00:16]} Nf7 {[%emt 0:02:32]} 33. Qg3 {[%emt 0:01:05]} Re5 {[%emt 0:00:30]} 34. c4 {[%emt 0:00:45]} Qh6 {[%emt 0:00:32]} 35. Rxe5 {[%emt 0:02:40]} dxe5 {[%emt 0:00:10]} 36. Qa3 {[%emt 0:00:53]} Be3 {[%emt 0:00:49]} 37. Nb3 {[%emt 0:00:59]} Ng5 {[%emt 0:02:16]} 38. Nc5 {[%emt 0:00:59]} Bxc5 {[%emt 0:00:13]} 39. Qxc5 {[%emt 0:00:04]} Ne4 {[%emt 0:00:34]} 40. Qe7+ {[%emt 0:02:51]} Kg8 {[%emt 0:00:32]} 41. Qe6+ {[%emt 0:00:45]} Kh7 {[%emt 0:00:04]} 42. Qxe5 {[%emt 0:00:59]} Qg5 {[%emt 0:01:12]} 43. Ra1 {[%emt 0:00:56]} Qe3 {[%emt 0:00:25]} 44. Kh2 {[%emt 0:01:20]} f4 {[%emt 0:00:25]} 45. Qe7+ {[%emt 0:00:35]} Kg8 {[%emt 0:00:10]} 46. Ra7 {[%emt 0:02:09]} Qg3+ {[%emt 0:00:51]} 47. Kg1 {[%emt 0:00:00]} Qe1+ {[%emt 0:00:34]} 48. Kh2 {[%emt 0:00:00]} Qg3+ {[%emt 0:00:15]} 49. Kg1 {[%emt 0:00:00]} Qe3+ {[%emt 0:00:24]} 50. Kh2 {[%emt 0:00:00]} Qg3+ {[%emt 0:00:09]} 51. Kg1 {[%emt 0:00:00]} Qe1+ {[%emt 0:00:16]} 1/2-1/2

[Event "Icelandic Team-ch Premier 2021-22"]
[Site "Reykjavik"]
[Date "2022.03.05"]
[Round "8.10"]
[White "Stefansson, Hannes"]
[Black "Kjartansson, Gudmundur"]
[Result "1/2-1/2"]
[ECO "B92"]
[WhiteElo "2520"]
[BlackElo "2450"]
[Annotator "ChessBase"]
[PlyCount "117"]
[EventDate "2022.03.05"]
[EventType "team-tourn"]
[EventCountry "ISL"]
[SourceTitle "playchess.com"]
[Source "ChessBase"]
[SourceQuality "1"]
[TimeControl "5400+30"]

1. e4 {[%emt 0:00:06]} c5 {[%emt 0:00:20]} 2. Nf3 {[%emt 0:00:11]} d6 {[%emt 0:00:14]} 3. d4 {[%emt 0:00:13]} cxd4 {[%emt 0:00:03]} 4. Nxd4 {[%emt 0:00:13]} Nf6 {[%emt 0:00:05]} 5. Nc3 {[%emt 0:00:15]} a6 {[%emt 0:00:06]} 6. Be2 {[%emt 0:00:30]} e5 {[%emt 0:00:29]} 7. Nb3 {[%emt 0:00:17]} Be7 {[%emt 0:00:41]} 8. O-O {[%emt 0:00:51]} O-O {[%emt 0:00:08]} 9. Re1 {[%emt 0:00:57]} Be6 {[%emt 0:05:09]} 10. Bf3 {[%emt 0:00:29]} Nbd7 {[%emt 0:02:58]} 11. a4 {[%emt 0:00:40]} Qc7 {[%emt 0:19:46]} 12. Nd2 {[%emt 0:02:29]} Rab8 {[%emt 0:11:14]} 13. a5 {[%emt 0:04:49]} b5 {[%emt 0:03:35]} 14. axb6 {[%emt 0:00:20]} Nxb6 {[%emt 0:00:43]} 15. Rxa6 {[%emt 0:07:53]} d5 {[%emt 0:04:36]} 16. exd5 {[%emt 0:02:14]} Nbxd5 {[%emt 0:03:55]} 17. Nxd5 {[%emt 0:00:59]} Nxd5 {[%emt 0:00:37]} 18. Be4 {[%emt 0:17:11]} Nf6 {[%emt 0:08:30]} 19. Bd3 {[%emt 0:04:23]} Bg4 {[%emt 0:01:12]} 20. Be2 {[%emt 0:03:41]} Bxe2 {[%emt 0:07:27]} 21. Rxe2 {[%emt 0:01:07]} Rfd8 {[%emt 0:00:26]} 22. c3 {[%emt 0:02:23]} e4 {[%emt 0:04:59]} 23. h3 {[%emt 0:13:10]} Nd7 {[%emt 0:07:20]} 24. Qa4 {[%emt 0:07:45]} Nc5 {[%emt 0:01:23]} 25. Ra7 {[%emt 0:00:09]} Rb7 {[%emt 0:05:42]} 26. Rxb7 {[%emt 0:00:06]} Qxb7 {[%emt 0:00:04]} 27. Qc2 {[%emt 0:01:31]} f5 {[%emt 0:00:27]} 28. Nf1 {[%emt 0:02:25]} Nd3 {[%emt 0:00:29]} 29. Be3 {[%emt 0:01:50]} Bf6 {[%emt 0:03:10]} 30. Qa4 {[%emt 0:03:24]} f4 {[%emt 0:01:54]} 31. Bd4 {[%emt 0:00:35]} Bxd4 {[%emt 0:00:57]} 32. cxd4 {[%emt 0:00:25]} Qd5 {[%emt 0:01:54]} 33. Nd2 {[%emt 0:01:58]} Qxd4 {[%emt 0:04:43]} 34. Qxd4 {[%emt 0:00:11]} Rxd4 {[%emt 0:00:02]} 35. Nxe4 {[%emt 0:00:41]} Rb4 {[%emt 0:01:29]} 36. Ng5 {[%emt 0:00:56]} Rb8 {[%emt 0:00:28]} 37. Rd2 {[%emt 0:03:15]} Nxb2 {[%emt 0:01:12]} 38. Rd7 {[%emt 0:00:36]} Re8 {[%emt 0:00:23]} 39. h4 {[%emt 0:03:13]} h6 {[%emt 0:00:37]} 40. Nf3 {[%emt 0:02:15]} Nc4 {[%emt 0:00:28]} 41. Rd5 {[%emt 0:01:40]} Re6 {[%emt 0:00:33]} 42. h5 {[%emt 0:00:27]} Nd6 {[%emt 0:00:17]} 43. Nh4 {[%emt 0:02:09]} Nf7 {[%emt 0:00:43]} 44. Ng6 {[%emt 0:01:35]} f3 {[%emt 0:00:19]} 45. gxf3 {[%emt 0:00:25]} Nd6 {[%emt 0:00:40]} 46. Ra5 {[%emt 0:01:48]} Kf7 {[%emt 0:00:16]} 47. f4 {[%emt 0:00:45]} Kf6 {[%emt 0:00:29]} 48. Kg2 {[%emt 0:01:18]} Nf7 {[%emt 0:00:44]} 49. Ra8 {[%emt 0:00:30]} Rd6 {[%emt 0:00:24]} 50. Rf8 {[%emt 0:00:44]} Rd8 {[%emt 0:00:22]} 51. Rxd8 {[%emt 0:01:33]} Nxd8 {[%emt 0:00:00]} 52. Nh4 {[%emt 0:02:31]} Nb7 {[%emt 0:00:59]} 53. Kf3 {[%emt 0:01:10]} Nd6 {[%emt 0:00:06]} 54. Ng6 {[%emt 0:00:19]} Kf5 {[%emt 0:00:31]} 55. Ne5 {[%emt 0:00:52]} Ne8 {[%emt 0:00:38]} 56. Ng4 {[%emt 0:00:47]} Nd6 {[%emt 0:00:58]} 57. Ne3+ {[%emt 0:00:27]} Ke6 {[%emt 0:00:15]} 58. Kg4 {[%emt 0:00:30]} Ne4 {[%emt 0:00:22]} 59. f3 {[%emt 0:01:30]} 1/2-1/2

[Event "Icelandic Team-ch Premier 2021-22"]
[Site "Reykjavik"]
[Date "2022.03.05"]
[Round "8.11"]
[White "Gretarsson, Helgi Ass"]
[Black "Nagy, Gabor"]
[Result "0-1"]
[ECO "D35"]
[WhiteElo "2467"]
[BlackElo "2530"]
[Annotator "ChessBase"]
[PlyCount "78"]
[EventDate "2022.03.05"]
[EventType "team-tourn"]
[EventCountry "ISL"]
[SourceTitle "playchess.com"]
[Source "ChessBase"]
[SourceQuality "1"]
[TimeControl "5400+30"]

1. d4 {[%emt 0:00:03]} Nf6 {[%emt 0:00:13]} 2. c4 {[%emt 0:00:04]} e6 {[%emt 0:00:22]} 3. Nc3 {[%emt 0:00:09]} d5 {[%emt 0:00:13]} 4. cxd5 {[%emt 0:01:04]} exd5 {[%emt 0:00:11]} 5. Bg5 {[%emt 0:00:03]} Be7 {[%emt 0:01:56]} 6. e3 {[%emt 0:00:29]} O-O {[%emt 0:01:15]} 7. Bd3 {[%emt 0:00:33]} h6 {[%emt 0:00:26]} 8. Bh4 {[%emt 0:06:14]} Re8 {[%emt 0:01:50]} 9. Nge2 {[%emt 0:04:58]} b6 {[%emt 0:02:33]} 10. O-O {[%emt 0:04:26]} Bb7 {[%emt 0:00:16]} 11. Rb1 {[%emt 0:11:02]} a5 {[%emt 0:05:29]} 12. Qc2 {[%emt 0:02:36]} Nbd7 {[%emt 0:01:47]} 13. f3 {[%emt 0:03:56]} Rc8 {[%emt 0:05:08]} 14. Kh1 {[%emt 0:03:52]} Nf8 {[%emt 0:05:30]} 15. Rbd1 {[%emt 0:02:33]} N6d7 {[%emt 0:03:08]} 16. Bf2 {[%emt 0:00:10]} c6 {[%emt 0:03:31]} 17. e4 {[%emt 0:01:44]} b5 {[%emt 0:00:15]} 18. e5 {[%emt 0:05:59]} b4 {[%emt 0:00:55]} 19. Na4 {[%emt 0:00:21]} Ne6 {[%emt 0:02:44]} 20. f4 {[%emt 0:00:43]} c5 {[%emt 0:03:13]} 21. Bb5 {[%emt 0:00:16]} cxd4 {[%emt 0:01:50]} 22. Qd3 {[%emt 0:10:50]} Ndc5 {[%emt 0:01:26]} 23. Nxc5 {[%emt 0:00:07]} Nxc5 {[%emt 0:00:11]} 24. Qf3 {[%emt 0:02:58]} d3 {[%emt 0:03:14]} 25. Ng3 {[%emt 0:00:18]} d4 {[%emt 0:05:13]} 26. Qg4 {[%emt 0:00:09]} Bf8 {[%emt 0:03:05]} 27. Bxe8 {[%emt 0:01:15]} Qxe8 {[%emt 0:03:00]} 28. f5 {[%emt 0:24:00]} Nd7 {[%emt 0:03:01]} 29. Nh5 {[%emt 0:02:32]} Qxe5 {[%emt 0:02:27]} 30. Rfe1 {[%emt 0:10:00]} Qd6 {[%emt 0:01:22]} 31. Rd2 {[%emt 0:01:58]} Rc2 {[%emt 0:01:12]} 32. Re8 {[%emt 0:00:37]} Kh7 {[%emt 0:01:08]} 33. Be1 {[%emt 0:00:30]} Rc1 {[%emt 0:01:40]} 34. h3 {[%emt 0:00:27]} Ne5 {[%emt 0:01:51]} 35. Qh4 {[%emt 0:00:19]} Bc6 {[%emt 0:01:11]} 36. Rc8 {[%emt 0:00:21]} Be7 {[%emt 0:03:39]} 37. Qg3 {[%emt 0:00:05]} Bg5 {[%emt 0:00:04]} 38. h4 {[%emt 0:01:17]} Nf3 {[%emt 0:00:21]} 39. gxf3 {[%emt 0:00:29]} Qxg3 {[%emt 0:00:09]} 0-1